[Event "BL 2024-25"]
[Site "Austria"]
[Date "2024.10.13"]
[Round "5.13"]
[White "Vitouch, Anatol"]
[Black "Rosner, Jonas"]
[Result "1/2-1/2"]
[Annotator "TA"]
[ECO "D13"]
[WhiteElo "2287"]
[BlackElo "2434"]
[PlyCount "63"]
[EventDate "2024.08.28"]
[EventType "team-tourn"]
[EventCountry "AUT"]
[SourceTitle "playchess.com"]
[Source "ChessBase"]
[SourceQuality "1"]
[WhiteTeam "Pamhagen"]
[BlackTeam "Salzburg"]
[TimeControl "40/5400+30:1800+30"]

{[%evp 21,63,14,11,18,29,-5,15,0,33,0,58,13,53,36,54,44,46,31,15,18,28,15,30,-15,14,-29,-31,-34,-35,-38,-20,-39,-28,-30,-16,-23,0,0,0,0,0,0,0,0]} 1. Nf3 {[%emt 0:00:03]} d5 {[%emt 0:00:10]} 2. d4 {[%emt 0:00:22]} Nf6 {[%emt 0:00:06]} 3. c4 {[%emt 0:00:09]} c6 {[%emt 0:00:19]} 4. cxd5 {[%emt 0:00:26]} cxd5 {[%emt 0:00:08]} 5. Nc3 {[%emt 0:00:03]} Nc6 {[%emt 0:00:32]} 6. Bf4 {[%emt 0:00:10]} a6 {[%emt 0:00:21]} 7. e3 {[%emt 0:01:07]} Bg4 {[%emt 0:00:34]} 8. Be2 {[%emt 0:01:03]} e6 {[%emt 0:01:06]} 9. h3 {[%emt 0:01:57]} Bxf3 {[%emt 0:00:28]} 10. Bxf3 {[%emt 0:00:14]} Bd6 {[%emt 0:00:26]} 11. Bxd6 {[%emt 0:00:28]} Qxd6 {[%emt 0:00:03]} 12. O-O {[%emt 0:00:45] D13: Slavische Verdediging: Exchange Variant zonder ...Lf5.} O-O {[%emt 0:00:30]} 13. Qe2 {[%emt 0:05:35] Onnauwkeurig} Rac8 {[%emt 0:05:38]} 14. Rac1 {[%emt 0:01:10]} Na5 $146 {[%emt 0:03:41] Onnauwkeurig} ({Predecessor:} 14... b5 15. Rfd1 Ne7 16. Rc2 Rc7 17. Rdc1 Rfc8 18. Nb1 Rxc2 19. Rxc2 Rxc2 20. Qxc2 Qc6 21. Qxc6 Nxc6 {½-½ Wageih,K (2268)-Savchenko,S (2526) Dubai op 12th 2010 (5)}) 15. Rfd1 {[%emt 0:02:30] Onnauwkeurig} {Zwart kan overwegen om te spelen.} Rc7 {[%emt 0:06:06] Fout (0.6)} (15... Qb4 $11) 16. Na4 {[%emt 0:15:28] Onnauwkeurig} Nd7 {[%emt 0:07:12] Onnauwkeurig} 17. Qe1 {[%emt 0:03:19]} Rfc8 {[%emt 0:03:53]} 18. Nc5 {[%emt 0:08:40] OK} Nc4 {[%emt 0:05:21] OK} 19. Nd3 {[%emt 0:01:58]} Qb6 {[%emt 0:06:42] OK} 20. b3 {[%emt 0:02:43] OK} Nd6 {[%emt 0:01:11] OK} 21. Rxc7 {[%emt 0:00:11] OK} Rxc7 {[%emt 0:01:13]} 22. Rc1 {[%emt 0:00:24] Onnauwkeurig} a5 {[%emt 0:02:48] Onnauwkeurig} 23. Rxc7 {[%emt 0:02:28] Onnauwkeurig} Qxc7 {[%emt 0:00:02]} 24. Qc1 {[%emt 0:00:22]} Qxc1+ {[%emt 0:02:01] OK} 25. Nxc1 $15 {[%emt 0:00:05][%mdl 4096] Eindspel. KBN-KNN} g5 {[%emt 0:01:45]} 26. g4 {[%emt 0:06:56] OK} Kf8 {[%emt 0:09:52]} 27. Be2 {[%emt 0:03:07] OK} Ke7 {[%emt 0:01:27]} 28. Bd3 {[%emt 0:00:05] OK} Nf6 {[%emt 0:02:55]} 29. f3 {[%emt 0:02:38] OK. De stelling is in evenwicht.} h5 {[%emt 0:03:35]} 30. Kf2 {[%emt 0:01:03]} hxg4 {[%emt 0:03:01]} 31. hxg4 {[%emt 0:00:07]} Nd7 {[%emt 0:01:01] OK} 32. Ne2 {[%emt 0:04:50] Blunder waarde: Wit=0.13 (erg precies) /Zwart=0.18 (erg precies) . OK.  Fout:        	---       	Zwart=1      Onnauwkeurig:    	Wit=5      	Zwart=3      OK:         	Wit=8      	Zwart=5} 1/2-1/2

[Event "BL 2024-25"]
[Site "Austria"]
[Date "2024.10.13"]
[Round "5.14"]
[White "Hacker, Jonas"]
[Black "Gschiel, Alexander"]
[Result "1-0"]
[Annotator "RC"]
[ECO "B12"]
[WhiteElo "2385"]
[BlackElo "2326"]
[PlyCount "65"]
[EventDate "2024.08.28"]
[EventType "team-tourn"]
[EventCountry "AUT"]
[SourceTitle "playchess.com"]
[Source "ChessBase"]
[SourceQuality "1"]
[WhiteTeam "Salzburg"]
[BlackTeam "Pamhagen"]
[TimeControl "40/5400+30:1800+30"]

1. e4 {[%emt 0:00:04]} c6 {[%emt 0:00:12]} 2. d4 {[%emt 0:00:07]} d5 {[%emt 0:00:09]} 3. e5 {[%emt 0:00:03]} Bf5 {[%emt 0:00:10]} 4. Bd3 {[%emt 0:00:14]} Bxd3 {[%emt 0:00:14]} 5. Qxd3 {[%emt 0:00:03]} e6 {[%emt 0:00:22]} 6. Ne2 {[%emt 0:00:47]} Qa5+ {[%emt 0:00:29]} 7. c3 {[%emt 0:00:12]} Qa6 {[%emt 0:00:07]} 8. Qd1 {[%emt 0:00:15]} c5 {[%emt 0:01:31]} 9. Nd2 {[%emt 0:00:53]} Nc6 {[%emt 0:03:04]} 10. Nf3 {[%emt 0:00:30]} h5 {[%emt 0:04:26]} 11. O-O {[%emt 0:06:45]} Nge7 {[%emt 0:04:31]} 12. Bg5 {[%emt 0:17:54]} Nf5 {[%emt 0:01:42]} 13. Ng3 {[%emt 0:02:23]} Nxg3 {[%emt 0:02:15]} 14. fxg3 {[%emt 0:03:54]} Qb6 {[%emt 0:07:20]} 15. c4 {[%emt 0:08:08]} cxd4 {[%emt 0:09:17]} 16. cxd5 {[%emt 0:01:30]} exd5 {[%emt 0:00:13]} 17. Qd3 {[%emt 0:06:49]} Bc5 {[%emt 0:07:04]} 18. a3 {[%emt 0:12:24]} O-O {[%emt 0:17:39]} 19. Bf6 {[%emt 0:03:35]} gxf6 {[%emt 0:13:27]} 20. exf6 {[%emt 0:02:48]} Ne7 {[%emt 0:02:03]} 21. Ne5 {[%emt 0:05:39]} Qa6 {[%emt 0:05:59]} 22. Qd2 {[%emt 0:03:24]} Qe2 {[%emt 0:02:51]} 23. Qxe2 {[%emt 0:12:39]} d3+ {[%emt 0:00:01]} 24. Qf2 {[%emt 0:00:10]} Bxf2+ {[%emt 0:00:05]} 25. Rxf2 {[%emt 0:00:07]} Ng6 {[%emt 0:02:45]} 26. Nxd3 {[%emt 0:00:12]} Rfe8 {[%emt 0:00:26]} 27. Rf5 {[%emt 0:01:27]} Re2 {[%emt 0:01:26]} 28. Rxd5 {[%emt 0:05:14]} Rc8 {[%emt 0:00:11]} 29. Re1 {[%emt 0:01:52]} Rd2 {[%emt 0:00:11]} 30. h4 {[%emt 0:01:45]} Rcc2 {[%emt 0:01:02]} 31. Re8+ {[%emt 0:00:33]} Nf8 {[%emt 0:00:08]} 32. Rxf8+ {[%emt 0:00:21]} Kh7 {[%emt 0:00:16]} 33. Nf4 {[%emt 0:01:57]} 1-0

[Event "BL 2024-25"]
[Site "Austria"]
[Date "2024.10.13"]
[Round "5.15"]
[White "Lovrinovic, Christian"]
[Black "Goldbeck, Lars"]
[Result "0-1"]
[Annotator "RC"]
[ECO "D35"]
[WhiteElo "2053"]
[BlackElo "2372"]
[PlyCount "94"]
[EventDate "2024.08.28"]
[EventType "team-tourn"]
[EventCountry "AUT"]
[SourceTitle "playchess.com"]
[Source "ChessBase"]
[SourceQuality "1"]
[WhiteTeam "Pamhagen"]
[BlackTeam "Salzburg"]
[TimeControl "40/5400+30:1800+30"]

1. d4 {[%emt 0:00:02]} d5 {[%emt 0:00:33]} 2. c4 {[%emt 0:00:05]} e6 {[%emt 0:00:03]} 3. Nc3 {[%emt 0:00:29]} Nf6 {[%emt 0:00:12]} 4. cxd5 {[%emt 0:00:11]} exd5 {[%emt 0:00:02]} 5. Bg5 {[%emt 0:00:06]} c6 {[%emt 0:00:17]} 6. e3 {[%emt 0:00:14]} Bd6 {[%emt 0:00:06]} 7. Bd3 {[%emt 0:00:36]} h6 {[%emt 0:00:39]} 8. Bh4 {[%emt 0:01:07]} O-O {[%emt 0:00:16]} 9. Nge2 {[%emt 0:02:07]} Re8 {[%emt 0:00:11]} 10. Qc2 {[%emt 0:00:06]} a5 {[%emt 0:00:04]} 11. O-O {[%emt 0:11:35]} Bxh2+ {[%emt 0:00:23]} 12. Kh1 {[%emt 0:09:31]} Bd6 {[%emt 0:01:14]} 13. e4 {[%emt 0:00:04]} dxe4 {[%emt 0:01:05]} 14. Nxe4 {[%emt 0:00:02]} Be7 {[%emt 0:00:06]} 15. Nxf6+ {[%emt 0:06:49]} Bxf6 {[%emt 0:00:05]} 16. Bxf6 {[%emt 0:00:02]} Qxf6 {[%emt 0:00:10]} 17. Rad1 {[%emt 0:00:07]} Be6 {[%emt 0:01:25]} 18. Nc3 {[%emt 0:00:11]} Nd7 {[%emt 0:03:58]} 19. Ne4 {[%emt 0:05:53]} Qh4+ {[%emt 0:01:56]} 20. Kg1 {[%emt 0:00:01]} Bd5 {[%emt 0:01:00]} 21. Ng3 {[%emt 0:06:33]} Nf6 {[%emt 0:03:28]} 22. Nf5 {[%emt 0:00:13]} Qf4 {[%emt 0:00:45]} 23. Rfe1 {[%emt 0:17:50]} Ng4 {[%emt 0:07:30]} 24. Ng3 {[%emt 0:00:42]} h5 {[%emt 0:03:34]} 25. Nf1 {[%emt 0:00:26]} Rxe1 {[%emt 0:05:17]} 26. Rxe1 {[%emt 0:00:13]} Qxd4 {[%emt 0:00:24]} 27. Re7 {[%emt 0:01:09]} b5 {[%emt 0:01:32]} 28. Qe2 {[%emt 0:00:04]} g6 {[%emt 0:01:16]} 29. Bb1 {[%emt 0:00:58]} Qf4 {[%emt 0:03:42]} 30. b3 {[%emt 0:09:34]} a4 {[%emt 0:04:45]} 31. Be4 {[%emt 0:00:14]} Bxe4 {[%emt 0:01:41]} 32. Rxe4 {[%emt 0:00:36]} Qd6 {[%emt 0:02:05]} 33. bxa4 {[%emt 0:01:50]} Rxa4 {[%emt 0:00:22]} 34. Rxa4 {[%emt 0:10:00]} bxa4 {[%emt 0:00:02]} 35. Qc4 {[%emt 0:00:07]} a3 {[%emt 0:00:21]} 36. f3 {[%emt 0:00:26]} Nf6 {[%emt 0:02:13]} 37. Qc3 {[%emt 0:00:53]} Nd5 {[%emt 0:00:26]} 38. Qc1 {[%emt 0:01:16]} Nf4 {[%emt 0:00:44]} 39. Kh1 {[%emt 0:01:11]} h4 {[%emt 0:01:53]} 40. Qc4 {[%emt 0:07:06]} c5 {[%emt 0:03:26]} 41. Qe4 {[%emt 0:31:38]} Kg7 {[%emt 0:35:14]} 42. Ne3 {[%emt 0:00:50]} Qd4 {[%emt 0:02:27]} 43. Qe7 {[%emt 0:03:24]} c4 {[%emt 0:05:41]} 44. Qxa3 {[%emt 0:00:00]} Qd2 {[%emt 0:00:00]} 45. Qe7 {[%emt 0:00:00]} Qe1+ {[%emt 0:00:00]} 46. Kh2 {[%emt 0:00:00]} Qg3+ {[%emt 0:00:00]} 47. Kh1 {[%emt 0:00:00]} h3 {[%emt 0:00:00]} 0-1

[Event "BL 2024-25"]
[Site "Austria"]
[Date "2024.10.13"]
[Round "5.16"]
[White "Hinterreiter, Markus"]
[Black "Fleischhacker, Christian"]
[Result "1-0"]
[Annotator "RC"]
[ECO "D07"]
[WhiteElo "2269"]
[BlackElo "1873"]
[PlyCount "21"]
[EventDate "2024.08.28"]
[EventType "team-tourn"]
[EventCountry "AUT"]
[SourceTitle "playchess.com"]
[Source "ChessBase"]
[SourceQuality "1"]
[WhiteTeam "Salzburg"]
[BlackTeam "Pamhagen"]
[TimeControl "40/5400+30:1800+30"]

1. Nf3 {[%emt 0:00:02]} Nc6 {[%emt 0:02:32]} 2. d4 {[%emt 0:00:35]} d5 {[%emt 0:01:19]} 3. c4 {[%emt 0:01:31]} Bf5 {[%emt 0:04:39]} 4. cxd5 {[%emt 0:03:52]} Qxd5 {[%emt 0:01:33]} 5. Nc3 {[%emt 0:04:47]} Qd8 {[%emt 0:05:07]} 6. d5 {[%emt 0:02:18]} Nb8 {[%emt 0:07:07]} 7. Qb3 {[%emt 0:03:28]} Qc8 {[%emt 0:10:12]} 8. e4 {[%emt 0:02:41]} Bd7 {[%emt 0:06:07]} 9. Bf4 {[%emt 0:04:30]} a6 {[%emt 0:09:14]} 10. Rc1 {[%emt 0:02:21]} c6 {[%emt 0:05:54]} 11. Na4 {[%emt 0:02:13]} 1-0

[Event "BL 2024-25"]
[Site "Austria"]
[Date "2024.10.13"]
[Round "5.18"]
[White "Leeb, Simon"]
[Black "Rusek, Walter"]
[Result "1-0"]
[Annotator "RC"]
[ECO "B10"]
[WhiteElo "2219"]
[BlackElo "1838"]
[PlyCount "49"]
[EventDate "2024.08.28"]
[EventType "team-tourn"]
[EventCountry "AUT"]
[SourceTitle "playchess.com"]
[Source "ChessBase"]
[SourceQuality "1"]
[WhiteTeam "Salzburg"]
[BlackTeam "Pamhagen"]
[TimeControl "40/5400+30:1800+30"]

1. c4 {[%emt 0:00:29]} c6 {[%emt 0:00:04]} 2. e4 {[%emt 0:00:17]} d5 {[%emt 0:00:04]} 3. cxd5 {[%emt 0:00:04]} cxd5 {[%emt 0:00:05]} 4. exd5 {[%emt 0:00:05]} Nf6 {[%emt 0:00:04]} 5. Nc3 {[%emt 0:00:06]} Nxd5 {[%emt 0:00:30]} 6. Bc4 {[%emt 0:00:48]} e6 {[%emt 0:00:26]} 7. Nf3 {[%emt 0:00:06]} Be7 {[%emt 0:00:55]} 8. O-O {[%emt 0:03:18]} O-O {[%emt 0:00:11]} 9. Re1 {[%emt 0:01:29]} Re8 {[%emt 0:00:18]} 10. Ne5 {[%emt 0:03:59]} Bf6 {[%emt 0:03:10]} 11. Ng4 {[%emt 0:09:48]} Nxc3 {[%emt 0:10:12]} 12. dxc3 {[%emt 0:03:59]} Nc6 {[%emt 0:03:49]} 13. Qf3 {[%emt 0:06:25]} e5 {[%emt 0:05:31]} 14. Nxf6+ {[%emt 0:05:32]} Qxf6 {[%emt 0:00:56]} 15. Qxf6 {[%emt 0:00:19]} gxf6 {[%emt 0:00:30]} 16. Bh6 {[%emt 0:00:47]} Be6 {[%emt 0:03:10]} 17. Bb5 {[%emt 0:02:15]} f5 {[%emt 0:02:51]} 18. Bxc6 {[%emt 0:02:50]} bxc6 {[%emt 0:00:04]} 19. Rxe5 {[%emt 0:00:09]} Bxa2 {[%emt 0:00:32]} 20. Rxf5 {[%emt 0:00:31]} Re2 {[%emt 0:00:48]} 21. b4 {[%emt 0:03:13]} Rc2 {[%emt 0:04:22]} 22. h3 {[%emt 0:03:46]} Bd5 {[%emt 0:08:06]} 23. Rg5+ {[%emt 0:10:36]} Kh8 {[%emt 0:00:32]} 24. Bg7+ {[%emt 0:03:13]} Kg8 {[%emt 0:00:03]} 25. Bd4+ {[%emt 0:00:09]} 1-0

[Event "BL 2024-25"]
[Site "Austria"]
[Date "2024.10.13"]
[Round "5.19"]
[White "Sarana, Alexey"]
[Black "Kozak, Adam"]
[Result "1/2-1/2"]
[Annotator "TA"]
[ECO "E14"]
[WhiteElo "2717"]
[BlackElo "2600"]
[PlyCount "47"]
[EventDate "2024.08.28"]
[EventType "team-tourn"]
[EventCountry "AUT"]
[SourceTitle "playchess.com"]
[Source "ChessBase"]
[SourceQuality "1"]
[WhiteTeam "Linz"]
[BlackTeam "Fuerstenfeld-Hartberg"]
[TimeControl "40/5400+30:1800+30"]

{[%evp 20,47,23,16,22,17,16,22,24,12,23,14,40,15,39,32,41,26,31,0,0,0,0,0,0,0,0,0,0,0]} 1. d4 {[%emt 0:00:02]} Nf6 {[%emt 0:00:07]} 2. c4 {[%emt 0:00:04]} e6 {[%emt 0:00:06]} 3. Nf3 {[%emt 0:00:07]} Bb4+ {[%emt 0:03:35]} 4. Nbd2 {[%emt 0:00:16]} b6 {[%emt 0:00:27]} 5. a3 {[%emt 0:00:12]} Bxd2+ {[%emt 0:00:07]} 6. Qxd2 {[%emt 0:00:08]} Bb7 {[%emt 0:00:19]} 7. e3 {[%emt 0:00:11]} O-O {[%emt 0:01:50]} 8. Be2 {[%emt 0:00:29]} d5 {[%emt 0:00:55]} 9. b3 {[%emt 0:03:49]} Nbd7 {[%emt 0:02:06]} 10. O-O {[%emt 0:02:07]} c5 {[%emt 0:00:20]} 11. Bb2 {[%emt 0:00:56]} Rc8 {[%emt 0:01:06]} 12. Rfd1 {[%emt 0:03:02]} Qe7 {[%emt 0:03:05]} 13. a4 {[%emt 0:08:06][%cal Ba3a4,Ba4a5][%mdl 32]} Rfd8 {[%emt 0:05:06]} 14. Rac1 {[%emt 0:05:02]} dxc4 {[%emt 0:14:54]} 15. bxc4 {[%emt 0:04:10]} Nf8 {[%emt 0:01:19]} 16. Qc3 {[%emt 0:06:24]} Ng6 {[%emt 0:02:42]} 17. Qa3 {[%emt 0:02:18]} Ne4 {[%emt 0:04:43]} 18. a5 {[%emt 0:08:21]} cxd4 {[%emt 0:10:08] [#] ...Qxa3 wäre nun fies.} 19. Nxd4 {[%emt 0:07:14]} (19. Qxe7 {vereinfacht} Nxe7 20. Nxd4 bxa5 21. f3) 19... Qh4 {[%emt 0:10:10] Die Stellung ist ausgeglichen.} (19... Nc5 {vereinfacht} 20. Nf3 e5 21. axb6 axb6 22. Qc3 Qc7) 20. g3 {[%emt 0:00:09]} Qh3 {[%emt 0:00:07][%cal Od8d4]} 21. Bf1 {[%emt 0:08:59] Das Läuferpaar ist gut.} Qh5 {[%emt 0:01:37][%cal Oe4f2] ...Nxf2! ist eine echte Drohung.} 22. Be2 $1 {[%emt 0:01:50]} Qh3 {[%emt 0:00:27][%cal Od8d4] [#] Droht stark ...Rxd4!} 23. Bf1 {[%emt 0:08:10]} Qh5 {[%emt 0:00:24][%cal Oe4f2] Und ...Nxf2! würde nun gewinnen.} 24. Be2 {[%emt 0:30:24] Gewichteter Fehlerwert: Weiß=0.06 (makellos) /Schwarz=0.05 (makellos) .  Ungenau:       	Weiß=1     	Schwarz=1     OK:         	Weiß=2     	Schwarz=5     Bester:       	Weiß=4     	---        Stark:        	Weiß=1     	---} 1/2-1/2

[Event "BL 2024-25"]
[Site "Austria"]
[Date "2024.10.13"]
[Round "5.20"]
[White "Berkes, Ferenc"]
[Black "Andreikin, Dmitry"]
[Result "1/2-1/2"]
[Annotator "TA"]
[ECO "D79"]
[WhiteElo "2604"]
[BlackElo "2729"]
[PlyCount "33"]
[EventDate "2024.08.28"]
[EventType "team-tourn"]
[EventCountry "AUT"]
[SourceTitle "playchess.com"]
[Source "ChessBase"]
[SourceQuality "1"]
[WhiteTeam "Fuerstenfeld-Hartberg"]
[BlackTeam "Linz"]
[TimeControl "40/5400+30:1800+30"]

{[%evp 18,33,22,12,11,8,12,0,22,15,18,0,19,0,8,0,24,0]} 1. d4 {[%emt 0:00:02]} Nf6 {[%emt 0:00:06]} 2. Nf3 {[%emt 0:00:14]} g6 {[%emt 0:00:08]} 3. g3 {[%emt 0:00:07]} d5 {[%emt 0:00:08]} 4. Bg2 {[%emt 0:00:12]} Bg7 {[%emt 0:00:08]} 5. c4 {[%emt 0:00:26]} c6 {[%emt 0:00:09]} 6. cxd5 {[%emt 0:01:30]} cxd5 {[%emt 0:00:06]} 7. Ne5 {[%emt 0:00:29]} O-O {[%emt 0:01:17]} 8. Nc3 {[%emt 0:00:27]} Nc6 {[%emt 0:01:32]} 9. O-O {[%emt 0:02:36]} Bf5 {[%emt 0:02:02]} 10. Bf4 {[%emt 0:01:50]} Rc8 {[%emt 0:10:55]} 11. Rc1 {[%emt 0:00:09]} Qb6 {[%emt 0:11:21][%csl LRb2,LRd4]} 12. Qd2 {[%emt 0:16:50]} Rfd8 {[%emt 0:03:05] The position is equal.} (12... Nxd4 $2 {loses.} 13. Be3 $18 (13. Bxd5 $2 {is the wrong capture.} Rcd8 $19)) 13. Na4 {[%emt 0:06:48]} Qb5 {[%emt 0:00:21]} 14. Nc3 {[%emt 0:00:08]} Qb6 {[%emt 0:00:50]} 15. Na4 {[%emt 0:00:07]} Qb5 {[%emt 0:00:40]} 16. Nc3 {[%emt 0:00:08]} Qb6 {[%emt 0:00:16]} 17. Na4 {[%emt 0:00:43] An uneventful encounter.   Weighted Error Value: White=0.11 (very precise) /Black=0.03 (flawless) .  OK:         	White=1     	Black=5} 1/2-1/2

[Event "BL 2024-25"]
[Site "Austria"]
[Date "2024.10.13"]
[Round "5.21"]
[White "Vitiugov, Nikita"]
[Black "Samunenkov, Ihor"]
[Result "1/2-1/2"]
[Annotator "TA"]
[ECO "C42"]
[WhiteElo "2667"]
[BlackElo "2533"]
[PlyCount "80"]
[EventDate "2024.08.28"]
[EventType "team-tourn"]
[EventCountry "AUT"]
[SourceTitle "playchess.com"]
[Source "ChessBase"]
[SourceQuality "1"]
[WhiteTeam "Linz"]
[BlackTeam "Fuerstenfeld-Hartberg"]
[TimeControl "40/5400+30:1800+30"]

{[%evp 9,80,14,35,11,29,10,12,0,14,0,16,7,18,17,7,15,23,23,20,14,4,13,30,24,22,8,18,10,16,18,32,29,79,66,60,27,18,10,28,24,43,38,57,57,57,57,56,41,39,24,40,37,33,28,35,26,26,23,28,27,54,31,31,23,27,23,23,23,23,22,22,22,23]} 1. e4 e5 2. Nf3 Nf6 3. Nxe5 d6 4. Nf3 Nxe4 5. Bd3 Nf6 6. O-O Be7 7. Re1 O-O 8. Bf1 d5 9. d4 h6 10. h3 c5 11. dxc5 Bxc5 12. Be3 Bxe3 13. Rxe3 Nc6 14. c3 Qb6 15. Qb3 Rd8 16. Qxb6 axb6 17. Na3 d4 $1 18. Nxd4 Nxd4 19. cxd4 Rxd4 20. Rb3 Nd5 (20... Rd6 $11 {remains equal.}) 21. Nb5 Rd2 22. Rd3 Rxd3 23. Bxd3 Be6 24. a3 Nf6 25. Rd1 Rc8 26. Be2 Bd5 27. Nc3 Bc6 28. Rd4 Re8 {[%cal Of6d5]} 29. Bd3 Kf8 30. f3 Re5 31. Kf2 Ke7 32. b4 g5 33. g3 Bd7 34. h4 Bc6 35. Be2 Nd5 36. f4 (36. Nxd5+ {simplifies} Rxd5 37. Rxd5 Bxd5 38. Bd3) 36... gxf4 37. gxf4 Rf5 38. Nxd5+ ({Much weaker is} 38. Bg4 Rxf4+ 39. Rxf4 Nxf4 $15) 38... Rxd5 39. Rxd5 Bxd5 40. Ke3 Kd6 {Weighted Error Value: White=0.06 (flawless) /Black=0.07 (flawless) .  Mistake:       	---       	Black=1      Inaccurate:     	White=1     	Black=1      OK:         	White=13    	Black=14     Strong:       	---       	Black=1} 1/2-1/2